Department Family,Entity,Date,Expense Type,Expense Area,Supplier,Transaction Number, Total 
Department of Health,St. Helens&Knowsley Hospitals NHS Trust,30/09/2022,Computer Maintenance,BD INCOME-NON PARTNERS,EMIS (EGTON MEDICAL INFORMATION SYSTEMS LTD),43619061," 34,425.23 "
Department of Health,St. Helens&Knowsley Hospitals NHS Trust,30/09/2022,Computer Maintenance,MMDA PROGRAMME COSTS - SHARED SERVICES,PCTI SOLUTIONS LTD,43956584," 61,200.00 "
Department of Health,St. Helens&Knowsley Hospitals NHS Trust,30/09/2022,Continence Products,COMMUNITY CONTINENCE SERVICE,ESSITY UK LTD,43841306," 40,677.62 "
Department of Health,St. Helens&Knowsley Hospitals NHS Trust,30/09/2022,Continence Products,COMMUNITY CONTINENCE SERVICE,ESSITY UK LTD,43841312," 40,710.84 "
Department of Health,St. Helens&Knowsley Hospitals NHS Trust,30/09/2022,Continence Products,COMMUNITY CONTINENCE SERVICE,ESSITY UK LTD,43841370," 37,948.74 "
Department of Health,St. Helens&Knowsley Hospitals NHS Trust,30/09/2022,Drugs,DRUGS/M+S UNALLOCATED WH,AAH PHARMACEUTICALS LTD,43933545, 170.94 
Department of Health,St. Helens&Knowsley Hospitals NHS Trust,30/09/2022,Drugs,DRUGS/M+S UNALLOCATED WH,ALLIANCE HEALTHCARE DISTRIBUTION LTD,43857467," 26,650.54 "
Department of Health,St. Helens&Knowsley Hospitals NHS Trust,30/09/2022,Drugs,DRUGS/M+S UNALLOCATED WH,ALLIANCE HEALTHCARE DISTRIBUTION LTD,43857473,-186.90 
Department of Health,St. Helens&Knowsley Hospitals NHS Trust,30/09/2022,Drugs,DRUGS/M+S UNALLOCATED WH,NOVARTIS PHARMACEUTICALS UK LTD,43630801,"-35,259.84 "
Department of Health,St. Helens&Knowsley Hospitals NHS Trust,30/09/2022,Drugs,DRUGS/M+S UNALLOCATED WH,PHOENIX HEALTHCARE DISTRIBUTION LTD,43857465, 46.32 
Department of Health,St. Helens&Knowsley Hospitals NHS Trust,30/09/2022,Drugs,DRUGS/M+S UNALLOCATED WH,SCIENSUS PHARMA SERVICES LTD,43714145,"-24,943.51 "
Department of Health,St. Helens&Knowsley Hospitals NHS Trust,30/09/2022,Drugs,DRUGS/M+S UNALLOCATED WH,SCIENSUS PHARMA SERVICES LTD,43810718," 5,169.47 "
Department of Health,St. Helens&Knowsley Hospitals NHS Trust,30/09/2022,IGComp3PSoft - Additions,Balance Sheet,OMNICELL LTD,42775409," 28,449.75 "
Department of Health,St. Helens&Knowsley Hospitals NHS Trust,30/09/2022,Lab Equip Maint Contracts,CHEMICAL PATHOLOGY DEPT,SIEMENS HEALTHCARE DIAGNOSTICS LTD,43875369," 173,346.68 "
Department of Health,St. Helens&Knowsley Hospitals NHS Trust,30/09/2022,Laboratory Test Kits,POINT OF CARE,CHRYSTAL CONSULTING LTD,43319782," 22,699.06 "
Department of Health,St. Helens&Knowsley Hospitals NHS Trust,30/09/2022,Lease Rents,PFI DESIGN + CONSTRUCTION,HLGB,43875373," 71,850.00 "
Department of Health,St. Helens&Knowsley Hospitals NHS Trust,30/09/2022,Lease Rents,PFI DESIGN + CONSTRUCTION,MAPP PROPERTY MANAGEMENT LTD,43790923," 62,400.00 "
Department of Health,St. Helens&Knowsley Hospitals NHS Trust,30/09/2022,Lease Rents,REGIONAL VACCINATION CENTRE,ST HELENS RUGBY FOOTBALL CLUB LTD,43607146," 59,710.27 "
Department of Health,St. Helens&Knowsley Hospitals NHS Trust,30/09/2022,Med & Surg Equip Disp,GEN MED ENDOSCOPY H2,BOSTON SCIENTIFIC LTD,42267124," 21,244.51 "
Department of Health,St. Helens&Knowsley Hospitals NHS Trust,30/09/2022,Med & Surg Equip Disp,GEN MED ENDOSCOPY H2,BOSTON SCIENTIFIC LTD,42807730," 30,375.94 "
Department of Health,St. Helens&Knowsley Hospitals NHS Trust,30/09/2022,Med & Surg Equip Disp,GEN MED ENDOSCOPY H2,BOSTON SCIENTIFIC LTD,43776027," 37,716.85 "
Department of Health,St. Helens&Knowsley Hospitals NHS Trust,30/09/2022,Med & Surg Equip General,MEDICAL CARE GROUP MGT,BECTON DICKINSON (CME) UK LTD,43699878," 32,424.00 "
Department of Health,St. Helens&Knowsley Hospitals NHS Trust,30/09/2022,Med & Surg Equip General,THEATRES BURNS + PLASTICS,AAH PHARMACEUTICALS LTD,43933545, 77.96 
Department of Health,St. Helens&Knowsley Hospitals NHS Trust,30/09/2022,Med & Surg Equip General,THEATRES MAIN ST HELEN'S,AAH PHARMACEUTICALS LTD,43933545, 155.91 
Department of Health,St. Helens&Knowsley Hospitals NHS Trust,30/09/2022,Med & Surg Maint Contract,GEN MED ENDOSCOPY H2,SUPPLY CHAIN COORDINATION LIMITED,43910687,"-90,035.98 "
Department of Health,St. Helens&Knowsley Hospitals NHS Trust,30/09/2022,Med Equip Additions,Balance Sheet,MEDICAL GRAPHICS UK LTD,43900326," 72,600.00 "
Department of Health,St. Helens&Knowsley Hospitals NHS Trust,30/09/2022,Med Equip Additions,Balance Sheet,OMNICELL LTD,42775409," 128,348.85 "
Department of Health,St. Helens&Knowsley Hospitals NHS Trust,30/09/2022,Med Equip Additions,Balance Sheet,OMNICELL LTD,43663584,"-188,158.32 "
Department of Health,St. Helens&Knowsley Hospitals NHS Trust,30/09/2022,Med Equip Additions,Balance Sheet,OMNICELL LTD,43663585," 188,158.32 "
Department of Health,St. Helens&Knowsley Hospitals NHS Trust,30/09/2022,Miscellaneous Expenditure,BEVAN COURT FM,NEW HOSPITALS (ST HELENS & KNOWSLEY) LTD,43809082," 77,954.77 "
Department of Health,St. Helens&Knowsley Hospitals NHS Trust,30/09/2022,Miscellaneous Expenditure,HSDU WHISTON,SYNERGY HEALTH (UK) LTD,43673148," 192,868.03 "
Department of Health,St. Helens&Knowsley Hospitals NHS Trust,30/09/2022,Miscellaneous Expenditure,PFI ENABLING WORKS,NEW HOSPITALS (ST HELENS & KNOWSLEY) LTD,43788994," 1,136,550.47 "
Department of Health,St. Helens&Knowsley Hospitals NHS Trust,30/09/2022,Mobile Phones,A + E MEDICAL STAFF WH,VODAFONE LTD,43808944, 72.00 
Department of Health,St. Helens&Knowsley Hospitals NHS Trust,30/09/2022,Mobile Phones,A + E NURSING WHISTON,VODAFONE LTD,43808944, 38.18 
Department of Health,St. Helens&Knowsley Hospitals NHS Trust,30/09/2022,Mobile Phones,ACUTE KIDNEY INJURY SERVICE,VODAFONE LTD,43808944, 48.88 
Department of Health,St. Helens&Knowsley Hospitals NHS Trust,30/09/2022,Mobile Phones,ADMINISTRATION SERVICE CO-ORDINATOR,VODAFONE LTD,43808944, 38.80 
Department of Health,St. Helens&Knowsley Hospitals NHS Trust,30/09/2022,Mobile Phones,ADMINISTRATIVE SUPPORT,VODAFONE LTD,43808944, 24.77 
Department of Health,St. Helens&Knowsley Hospitals NHS Trust,30/09/2022,Mobile Phones,AMU NURSE SPECIALISTS,VODAFONE LTD,43808944, 216.00 
Department of Health,St. Helens&Knowsley Hospitals NHS Trust,30/09/2022,Mobile Phones,ANTI-COAGULATION NURSING TEAM,VODAFONE LTD,43808944, 36.00 
Department of Health,St. Helens&Knowsley Hospitals NHS Trust,30/09/2022,Mobile Phones,B + P MEDICAL PHOTOGRAPHY,VODAFONE LTD,43808944, 72.00 
Department of Health,St. Helens&Knowsley Hospitals NHS Trust,30/09/2022,Mobile Phones,B + P MEDICAL STAFF,VODAFONE LTD,43808944, 154.00 
Department of Health,St. Helens&Knowsley Hospitals NHS Trust,30/09/2022,Mobile Phones,BD INCOME-NON PARTNERS,VODAFONE LTD,43808944, 36.00 
Department of Health,St. Helens&Knowsley Hospitals NHS Trust,30/09/2022,Mobile Phones,BED MANAGEMENT,VODAFONE LTD,43808944, 72.86 
Department of Health,St. Helens&Knowsley Hospitals NHS Trust,30/09/2022,Mobile Phones,BEVAN COURT 1,VODAFONE LTD,43808944, 151.85 
Department of Health,St. Helens&Knowsley Hospitals NHS Trust,30/09/2022,Mobile Phones,BEVAN COURT 2,VODAFONE LTD,43808944, 180.00 
Department of Health,St. Helens&Knowsley Hospitals NHS Trust,30/09/2022,Mobile Phones,BREAST SURGERY,VODAFONE LTD,43808944, 9.00 
Department of Health,St. Helens&Knowsley Hospitals NHS Trust,30/09/2022,Mobile Phones,BUSINESS RELATIONSHIPS,VODAFONE LTD,43808944, 36.02 
Department of Health,St. Helens&Knowsley Hospitals NHS Trust,30/09/2022,Mobile Phones,C.O.P.D SERVICE (KPCT),VODAFONE LTD,43808944, 9.00 
Department of Health,St. Helens&Knowsley Hospitals NHS Trust,30/09/2022,Mobile Phones,C.O.P.D SERVICE (STHPCT),VODAFONE LTD,43808944," 1,197.00 "
Department of Health,St. Helens&Knowsley Hospitals NHS Trust,30/09/2022,Mobile Phones,CANCER CORE STAFF AND NON-PAY,VODAFONE LTD,43808944, 72.00 
Department of Health,St. Helens&Knowsley Hospitals NHS Trust,30/09/2022,Mobile Phones,CANCER NURSE SPEC MCG,VODAFONE LTD,43808944, 72.00 
Department of Health,St. Helens&Knowsley Hospitals NHS Trust,30/09/2022,Mobile Phones,CANCER NURSE SPEC SCG,VODAFONE LTD,43808944, 90.00 
Department of Health,St. Helens&Knowsley Hospitals NHS Trust,30/09/2022,Mobile Phones,CANCER SERVICES,VODAFONE LTD,43808944, 36.00 
Department of Health,St. Helens&Knowsley Hospitals NHS Trust,30/09/2022,Mobile Phones,CANCER SERVICES - ADMIN,VODAFONE LTD,43808944, 36.00 
Department of Health,St. Helens&Knowsley Hospitals NHS Trust,30/09/2022,Mobile Phones,CANCER SVS CO-ORDINATION,VODAFONE LTD,43808944, 234.00 
Department of Health,St. Helens&Knowsley Hospitals NHS Trust,30/09/2022,Mobile Phones,CARDIOLOGY NURSING,VODAFONE LTD,43808944, 176.40 
Department of Health,St. Helens&Knowsley Hospitals NHS Trust,30/09/2022,Mobile Phones,CARDIOLOGY SNR MEDICAL,VODAFONE LTD,43808944, 134.42 
Department of Health,St. Helens&Knowsley Hospitals NHS Trust,30/09/2022,Mobile Phones,CARDIO-RESPIRATORY (ECG),VODAFONE LTD,43808944, 225.00 
Department of Health,St. Helens&Knowsley Hospitals NHS Trust,30/09/2022,Mobile Phones,CARE OF ELDERLY MED STAFF,VODAFONE LTD,43808944, 765.00 
Department of Health,St. Helens&Knowsley Hospitals NHS Trust,30/09/2022,Mobile Phones,CHAIRMAN'S OFFICE,VODAFONE LTD,43808944, 262.55 
Department of Health,St. Helens&Knowsley Hospitals NHS Trust,30/09/2022,Mobile Phones,CHIEF EXECUTIVE'S OFFICE,VODAFONE LTD,43808944," 1,301.10 "
Department of Health,St. Helens&Knowsley Hospitals NHS Trust,30/09/2022,Mobile Phones,CHILDRENS NURSING,VODAFONE LTD,43808944," 1,160.40 "
Department of Health,St. Helens&Knowsley Hospitals NHS Trust,30/09/2022,Mobile Phones,CLINICAL AUDIT,VODAFONE LTD,43808944, 36.00 
Department of Health,St. Helens&Knowsley Hospitals NHS Trust,30/09/2022,Mobile Phones,CLINICAL GOVERNANCE TEAM,VODAFONE LTD,43808944, 63.00 
Department of Health,St. Helens&Knowsley Hospitals NHS Trust,30/09/2022,Mobile Phones,CLINICAL PSYCHOLOGY,VODAFONE LTD,43808944, 171.00 
Department of Health,St. Helens&Knowsley Hospitals NHS Trust,30/09/2022,Mobile Phones,CLINICAL SUPPORT DIV MGMT,VODAFONE LTD,43808944, 132.00 
Department of Health,St. Helens&Knowsley Hospitals NHS Trust,30/09/2022,Mobile Phones,COE NURSE SPECIALISTS,VODAFONE LTD,43808944, 117.30 
Department of Health,St. Helens&Knowsley Hospitals NHS Trust,30/09/2022,Mobile Phones,COLD DECONTAMINATION,VODAFONE LTD,43808944, 36.00 
Department of Health,St. Helens&Knowsley Hospitals NHS Trust,30/09/2022,Mobile Phones,COLD DECONTAMINATION WHISTON,VODAFONE LTD,43808944, 45.00 
Department of Health,St. Helens&Knowsley Hospitals NHS Trust,30/09/2022,Mobile Phones,COMMUNICATIONS,VODAFONE LTD,43808944, 408.00 
Department of Health,St. Helens&Knowsley Hospitals NHS Trust,30/09/2022,Mobile Phones,COMMUNITY CARDIAC TEAM,VODAFONE LTD,43808944, 356.40 
Department of Health,St. Helens&Knowsley Hospitals NHS Trust,30/09/2022,Mobile Phones,COMMUNITY CONTINENCE SERVICE,VODAFONE LTD,43808944, 144.00 
Department of Health,St. Helens&Knowsley Hospitals NHS Trust,30/09/2022,Mobile Phones,COMMUNITY FRAILTY SERVICE,VODAFONE LTD,43808944, 576.00 
Department of Health,St. Helens&Knowsley Hospitals NHS Trust,30/09/2022,Mobile Phones,COMMUNITY MATRON,VODAFONE LTD,43808944, 266.40 
Department of Health,St. Helens&Knowsley Hospitals NHS Trust,30/09/2022,Mobile Phones,COMMUNITY MIDWIFERY,VODAFONE LTD,43808944," 4,996.79 "
Department of Health,St. Helens&Knowsley Hospitals NHS Trust,30/09/2022,Mobile Phones,COMMUNITY PAEDIATRICS,VODAFONE LTD,43808944, 940.13 
Department of Health,St. Helens&Knowsley Hospitals NHS Trust,30/09/2022,Mobile Phones,COMMUNITY SERVICES MANAGEMENT,VODAFONE LTD,43808944, 570.36 
Department of Health,St. Helens&Knowsley Hospitals NHS Trust,30/09/2022,Mobile Phones,COMPLAINTS,VODAFONE LTD,43808944, 36.00 
Department of Health,St. Helens&Knowsley Hospitals NHS Trust,30/09/2022,Mobile Phones,COVID,VODAFONE LTD,43808944, 346.61 
Department of Health,St. Helens&Knowsley Hospitals NHS Trust,30/09/2022,Mobile Phones,DELIVERY SUITE,VODAFONE LTD,43808944, 9.00 
Department of Health,St. Helens&Knowsley Hospitals NHS Trust,30/09/2022,Mobile Phones,DIABETES NURSING,VODAFONE LTD,43808944, 294.00 
Department of Health,St. Helens&Knowsley Hospitals NHS Trust,30/09/2022,Mobile Phones,DIABETES SNR MEDICAL,VODAFONE LTD,43808944, 72.00 
Department of Health,St. Helens&Knowsley Hospitals NHS Trust,30/09/2022,Mobile Phones,DIABETES STP,VODAFONE LTD,43808944, 432.00 
Department of Health,St. Helens&Knowsley Hospitals NHS Trust,30/09/2022,Mobile Phones,DIGITAL ASPIRATION PRGRME,VODAFONE LTD,43808944, 36.00 
Department of Health,St. Helens&Knowsley Hospitals NHS Trust,30/09/2022,Mobile Phones,DN CENTRAL,VODAFONE LTD,43808944, 625.73 
Department of Health,St. Helens&Knowsley Hospitals NHS Trust,30/09/2022,Mobile Phones,DN HAYDOCK AND NEWTON,VODAFONE LTD,43808944, 807.35 
Department of Health,St. Helens&Knowsley Hospitals NHS Trust,30/09/2022,Mobile Phones,DN NORTH,VODAFONE LTD,43808944," 1,098.20 "
Department of Health,St. Helens&Knowsley Hospitals NHS Trust,30/09/2022,Mobile Phones,DN SOUTH,VODAFONE LTD,43808944," 1,127.84 "
Department of Health,St. Helens&Knowsley Hospitals NHS Trust,30/09/2022,Mobile Phones,DN St Helens OOH,VODAFONE LTD,43808944, 397.09 
Department of Health,St. Helens&Knowsley Hospitals NHS Trust,30/09/2022,Mobile Phones,DUFFY SUITE INTERMEDIATE CARE UNIT,VODAFONE LTD,43808944, 84.38 
Department of Health,St. Helens&Knowsley Hospitals NHS Trust,30/09/2022,Mobile Phones,EMERGENCY PLANNING,VODAFONE LTD,43808944, 350.16 
Department of Health,St. Helens&Knowsley Hospitals NHS Trust,30/09/2022,Mobile Phones,EPMA,VODAFONE LTD,43808944, 59.26 
Department of Health,St. Helens&Knowsley Hospitals NHS Trust,30/09/2022,Mobile Phones,ESTATE SURVEY SECTION,VODAFONE LTD,43808944, 36.00 
Department of Health,St. Helens&Knowsley Hospitals NHS Trust,30/09/2022,Mobile Phones,EXECUTIVE PAYROLL,VODAFONE LTD,43808944, 358.33 
Department of Health,St. Helens&Knowsley Hospitals NHS Trust,30/09/2022,Mobile Phones,FACILITIES MANAGEMENT,VODAFONE LTD,43808944, 333.48 
Department of Health,St. Helens&Knowsley Hospitals NHS Trust,30/09/2022,Mobile Phones,FALLS NURSE,VODAFONE LTD,43808944, 36.54 
Department of Health,St. Helens&Knowsley Hospitals NHS Trust,30/09/2022,Mobile Phones,FINANCE DIRECTORATE HQ,VODAFONE LTD,43808944, 403.20 
Department of Health,St. Helens&Knowsley Hospitals NHS Trust,30/09/2022,Mobile Phones,GASTRO UPPER GI FUND,VODAFONE LTD,43808944, 36.00 
Department of Health,St. Helens&Knowsley Hospitals NHS Trust,30/09/2022,Mobile Phones,GASTROLOGY NURSING,VODAFONE LTD,43808944, 378.36 
Department of Health,St. Helens&Knowsley Hospitals NHS Trust,30/09/2022,Mobile Phones,GASTROLOGY SNR MEDICAL,VODAFONE LTD,43808944, 322.68 
Department of Health,St. Helens&Knowsley Hospitals NHS Trust,30/09/2022,Mobile Phones,GEN MED ENDOSCOPY H2,VODAFONE LTD,43808944, 36.00 
Department of Health,St. Helens&Knowsley Hospitals NHS Trust,30/09/2022,Mobile Phones,GEN MEDICINE MEDICAL STF,VODAFONE LTD,43808944, 153.00 
Department of Health,St. Helens&Knowsley Hospitals NHS Trust,30/09/2022,Mobile Phones,GENERAL SURGERY MEDICAL,VODAFONE LTD,43808944, 263.80 
Department of Health,St. Helens&Knowsley Hospitals NHS Trust,30/09/2022,Mobile Phones,GYNAE OUTPATIEN ST HELENS,VODAFONE LTD,43808944, 36.00 
Department of Health,St. Helens&Knowsley Hospitals NHS Trust,30/09/2022,Mobile Phones,HAEM + BLOOD TRANSFUSION,VODAFONE LTD,43808944, 144.00 
Department of Health,St. Helens&Knowsley Hospitals NHS Trust,30/09/2022,Mobile Phones,HAEMATOLOGY MEDICAL,VODAFONE LTD,43808944, 189.36 
Department of Health,St. Helens&Knowsley Hospitals NHS Trust,30/09/2022,Mobile Phones,HISTOPATHOLOGY/MORTUARY,VODAFONE LTD,43808944, 36.18 
Department of Health,St. Helens&Knowsley Hospitals NHS Trust,30/09/2022,Mobile Phones,HOSPITAL DISCHARGE TEAM,VODAFONE LTD,43808944, 432.04 
Department of Health,St. Helens&Knowsley Hospitals NHS Trust,30/09/2022,Mobile Phones,HUMAN RESOURCES - CORE HR,VODAFONE LTD,43808944, 402.00 
Department of Health,St. Helens&Knowsley Hospitals NHS Trust,30/09/2022,Mobile Phones,HUMAN RESOURCES - RESOURCING,VODAFONE LTD,43808944," 1,446.00 "
Department of Health,St. Helens&Knowsley Hospitals NHS Trust,30/09/2022,Mobile Phones,I T EXECUTIVE,VODAFONE LTD,43808944, 102.00 
Department of Health,St. Helens&Knowsley Hospitals NHS Trust,30/09/2022,Mobile Phones,ICU MEDICAL STAFF WHISTON,VODAFONE LTD,43808944, 234.30 
Department of Health,St. Helens&Knowsley Hospitals NHS Trust,30/09/2022,Mobile Phones,ICU NURSING WHISTON,VODAFONE LTD,43808944, 9.00 
Department of Health,St. Helens&Knowsley Hospitals NHS Trust,30/09/2022,Mobile Phones,INFANT FEEDING TEAM,VODAFONE LTD,43808944, 36.00 
Department of Health,St. Helens&Knowsley Hospitals NHS Trust,30/09/2022,Mobile Phones,INFECTION CONTROL,VODAFONE LTD,43808944, 63.00 
Department of Health,St. Helens&Knowsley Hospitals NHS Trust,30/09/2022,Mobile Phones,INFORMATION DEPARTMENT,VODAFONE LTD,43808944, 216.00 
Department of Health,St. Helens&Knowsley Hospitals NHS Trust,30/09/2022,Mobile Phones,INTERNATIONAL RECRUITMENT,VODAFONE LTD,43808944, 36.00 
Department of Health,St. Helens&Knowsley Hospitals NHS Trust,30/09/2022,Mobile Phones,IRREG MAINT WHISTON,VODAFONE LTD,43808944, 108.00 
Department of Health,St. Helens&Knowsley Hospitals NHS Trust,30/09/2022,Mobile Phones,IV THERAPY ST HELENS,VODAFONE LTD,43808944, 283.31 
Department of Health,St. Helens&Knowsley Hospitals NHS Trust,30/09/2022,Mobile Phones,LEGAL SERVICES,VODAFONE LTD,43808944, 36.00 
Department of Health,St. Helens&Knowsley Hospitals NHS Trust,30/09/2022,Mobile Phones,LE-HELPDESK,VODAFONE LTD,43808944, 100.80 
Department of Health,St. Helens&Knowsley Hospitals NHS Trust,30/09/2022,Mobile Phones,LE-MANAGEMENT TEAM,VODAFONE LTD,43808944, 620.53 
Department of Health,St. Helens&Knowsley Hospitals NHS Trust,30/09/2022,Mobile Phones,LE-ROTATE AND CTRCT AMNDMNTS,VODAFONE LTD,43808944, 112.39 
Department of Health,St. Helens&Knowsley Hospitals NHS Trust,30/09/2022,Mobile Phones,LIBRARY SERVICES,VODAFONE LTD,43808944, 36.00 
Department of Health,St. Helens&Knowsley Hospitals NHS Trust,30/09/2022,Mobile Phones,MARSHALLS CROSS MEDICAL CENTRE,VODAFONE LTD,43808944, 36.00 
Department of Health,St. Helens&Knowsley Hospitals NHS Trust,30/09/2022,Mobile Phones,MCG DISCHARGE CO-ORDINATORS,VODAFONE LTD,43808944, 513.18 
Department of Health,St. Helens&Knowsley Hospitals NHS Trust,30/09/2022,Mobile Phones,MED SECRETARIES BAND 3,VODAFONE LTD,43808944, 45.00 
Department of Health,St. Helens&Knowsley Hospitals NHS Trust,30/09/2022,Mobile Phones,MEDICAL CARE GROUP MGT,VODAFONE LTD,43808944," 1,764.24 "
Department of Health,St. Helens&Knowsley Hospitals NHS Trust,30/09/2022,Mobile Phones,MGMT SPECIALIST MIDWIVES,VODAFONE LTD,43808944, 440.42 
Department of Health,St. Helens&Knowsley Hospitals NHS Trust,30/09/2022,Mobile Phones,MICROBIOLOGY DEPT,VODAFONE LTD,43808944, 393.00 
Department of Health,St. Helens&Knowsley Hospitals NHS Trust,30/09/2022,Mobile Phones,MICROBIOLOGY MED STAFF,VODAFONE LTD,43808944, 72.00 
Department of Health,St. Helens&Knowsley Hospitals NHS Trust,30/09/2022,Mobile Phones,MMDA PROGRAMME COSTS - SHARED SERVICES,VODAFONE LTD,43808944," 3,811.56 "
Department of Health,St. Helens&Knowsley Hospitals NHS Trust,30/09/2022,Mobile Phones,MVP LEAD EMPLOYER SUPPORT,VODAFONE LTD,43808944, 677.32 
Department of Health,St. Helens&Knowsley Hospitals NHS Trust,30/09/2022,Mobile Phones,NEWTON HOSPITAL OP,VODAFONE LTD,43808944, 54.00 
Department of Health,St. Helens&Knowsley Hospitals NHS Trust,30/09/2022,Mobile Phones,NEWTON INTERMEDIATE CARE SERVICE,VODAFONE LTD,43808944, 286.20 
Department of Health,St. Helens&Knowsley Hospitals NHS Trust,30/09/2022,Mobile Phones,NORTH TREATMENT ROOMS,VODAFONE LTD,43808944, 36.00 
Department of Health,St. Helens&Knowsley Hospitals NHS Trust,30/09/2022,Mobile Phones,NURSING ADMINISTRATION,VODAFONE LTD,43808944, 621.36 
Department of Health,St. Helens&Knowsley Hospitals NHS Trust,30/09/2022,Mobile Phones,NURSING DIRECTOR ADMIN STAFF,VODAFONE LTD,43808944, 36.00 
Department of Health,St. Helens&Knowsley Hospitals NHS Trust,30/09/2022,Mobile Phones,OBS + GYNAE MEDICAL STAFF,VODAFONE LTD,43808944, 72.00 
Department of Health,St. Helens&Knowsley Hospitals NHS Trust,30/09/2022,Mobile Phones,OCCUPATIONAL HEALTH MED,VODAFONE LTD,43808944, 100.02 
Department of Health,St. Helens&Knowsley Hospitals NHS Trust,30/09/2022,Mobile Phones,OCCUPATIONAL HEALTH NURS,VODAFONE LTD,43808944, 108.00 
Department of Health,St. Helens&Knowsley Hospitals NHS Trust,30/09/2022,Mobile Phones,OPHTH RENNIE EYE CLINIC,VODAFONE LTD,43808944, 36.00 
Department of Health,St. Helens&Knowsley Hospitals NHS Trust,30/09/2022,Mobile Phones,ORGANISATIONAL L And D,VODAFONE LTD,43808944, 9.00 
Department of Health,St. Helens&Knowsley Hospitals NHS Trust,30/09/2022,Mobile Phones,ORTHOPAEDIC MEDICAL STAFF,VODAFONE LTD,43808944, 72.00 
Department of Health,St. Helens&Knowsley Hospitals NHS Trust,30/09/2022,Mobile Phones,ORTHOPTICS DEPARTMENT,VODAFONE LTD,43808944, 104.80 
Department of Health,St. Helens&Knowsley Hospitals NHS Trust,30/09/2022,Mobile Phones,OUTPATIENTS ST HELENS,VODAFONE LTD,43808944, 36.00 
Department of Health,St. Helens&Knowsley Hospitals NHS Trust,30/09/2022,Mobile Phones,PAED SPECIALIST NURSES,VODAFONE LTD,43808944, 118.66 
Department of Health,St. Helens&Knowsley Hospitals NHS Trust,30/09/2022,Mobile Phones,PAEDIATRIC CONTINENCE,VODAFONE LTD,43808944, 72.00 
Department of Health,St. Helens&Knowsley Hospitals NHS Trust,30/09/2022,Mobile Phones,PAEDIATRIC MEDICAL STAFF,VODAFONE LTD,43808944, 9.00 
Department of Health,St. Helens&Knowsley Hospitals NHS Trust,30/09/2022,Mobile Phones,PAEDIATRICS WARD CLERKS,VODAFONE LTD,43808944, 9.00 
Department of Health,St. Helens&Knowsley Hospitals NHS Trust,30/09/2022,Mobile Phones,PALLIATIVE CARE WHISTON,VODAFONE LTD,43808944, 120.00 
Department of Health,St. Helens&Knowsley Hospitals NHS Trust,30/09/2022,Mobile Phones,PATHOLOGY GENERAL,VODAFONE LTD,43808944, 666.89 
Department of Health,St. Helens&Knowsley Hospitals NHS Trust,30/09/2022,Mobile Phones,PATIENT ACCESS MGMT,VODAFONE LTD,43808944, 155.56 
Department of Health,St. Helens&Knowsley Hospitals NHS Trust,30/09/2022,Mobile Phones,PAYING PATIENTS,VODAFONE LTD,43808944, 108.00 
Department of Health,St. Helens&Knowsley Hospitals NHS Trust,30/09/2022,Mobile Phones,PAYROLL SERVICES,VODAFONE LTD,43808944, 72.00 
Department of Health,St. Helens&Knowsley Hospitals NHS Trust,30/09/2022,Mobile Phones,PFI DESIGN + CONSTRUCTION,VODAFONE LTD,43808944, 252.00 
Department of Health,St. Helens&Knowsley Hospitals NHS Trust,30/09/2022,Mobile Phones,PHARMACY GENERAL,VODAFONE LTD,43808944, 700.32 
Department of Health,St. Helens&Knowsley Hospitals NHS Trust,30/09/2022,Mobile Phones,PROJECTS And TRAINING,VODAFONE LTD,43808944, 297.36 
Department of Health,St. Helens&Knowsley Hospitals NHS Trust,30/09/2022,Mobile Phones,RADIOGRAPHY WHISTON,VODAFONE LTD,43808944, 72.00 
Department of Health,St. Helens&Knowsley Hospitals NHS Trust,30/09/2022,Mobile Phones,RADIOLOGY MEDICAL STAFF,VODAFONE LTD,43808944, 36.00 
Department of Health,St. Helens&Knowsley Hospitals NHS Trust,30/09/2022,Mobile Phones,RD AND I,VODAFONE LTD,43808944, 117.32 
Department of Health,St. Helens&Knowsley Hospitals NHS Trust,30/09/2022,Mobile Phones,REABLEMENT TEAM,VODAFONE LTD,43808944, 135.00 
Department of Health,St. Helens&Knowsley Hospitals NHS Trust,30/09/2022,Mobile Phones,REGIONAL CANCER TRANSFORMATION,VODAFONE LTD,43808944, 36.00 
Department of Health,St. Helens&Knowsley Hospitals NHS Trust,30/09/2022,Mobile Phones,REGIONAL VACCINATION CENTRE,VODAFONE LTD,43808944, 266.40 
Department of Health,St. Helens&Knowsley Hospitals NHS Trust,30/09/2022,Mobile Phones,RESPIRATORY NURSING,VODAFONE LTD,43808944, 224.00 
Department of Health,St. Helens&Knowsley Hospitals NHS Trust,30/09/2022,Mobile Phones,RESPIRATORY SNR MEDICAL,VODAFONE LTD,43808944, 402.00 
Department of Health,St. Helens&Knowsley Hospitals NHS Trust,30/09/2022,Mobile Phones,RESUSCITATION TRAINING,VODAFONE LTD,43808944, 36.00 
Department of Health,St. Helens&Knowsley Hospitals NHS Trust,30/09/2022,Mobile Phones,SAFEGUARDING,VODAFONE LTD,43808944, 81.00 
Department of Health,St. Helens&Knowsley Hospitals NHS Trust,30/09/2022,Mobile Phones,SANDERSON SUITE GENERAL SURGERY,VODAFONE LTD,43808944, 72.00 
Department of Health,St. Helens&Knowsley Hospitals NHS Trust,30/09/2022,Mobile Phones,SECURITY SERVICES,VODAFONE LTD,43808944, 252.00 
Department of Health,St. Helens&Knowsley Hospitals NHS Trust,30/09/2022,Mobile Phones,SEDDON SUITE TRAUMA REHAB UNIT,VODAFONE LTD,43808944, 45.00 
Department of Health,St. Helens&Knowsley Hospitals NHS Trust,30/09/2022,Mobile Phones,SEPSIS,VODAFONE LTD,43808944, 36.00 
Department of Health,St. Helens&Knowsley Hospitals NHS Trust,30/09/2022,Mobile Phones,SERV INCR 4 TEACHING-SIFT,VODAFONE LTD,43808944, 180.00 
Department of Health,St. Helens&Knowsley Hospitals NHS Trust,30/09/2022,Mobile Phones,SERVICE DELIVERY INFRASTRUCTURE,VODAFONE LTD,43808944, 180.00 
Department of Health,St. Helens&Knowsley Hospitals NHS Trust,30/09/2022,Mobile Phones,SERVICE DELIVERY OPERATIONS,VODAFONE LTD,43808944, 36.00 
Department of Health,St. Helens&Knowsley Hospitals NHS Trust,30/09/2022,Mobile Phones,SEXUAL HEALTH,VODAFONE LTD,43808944, 787.27 
Department of Health,St. Helens&Knowsley Hospitals NHS Trust,30/09/2022,Mobile Phones,SHARED CARE RECORD - ST HELENS HEALTH ECONOMY,VODAFONE LTD,43808944, 108.00 
Department of Health,St. Helens&Knowsley Hospitals NHS Trust,30/09/2022,Mobile Phones,SOHT BLOOD SCIENCES,VODAFONE LTD,43808944, 9.00 
Department of Health,St. Helens&Knowsley Hospitals NHS Trust,30/09/2022,Mobile Phones,SOHT PHLEBOTOMY,VODAFONE LTD,43808944, 188.30 
Department of Health,St. Helens&Knowsley Hospitals NHS Trust,30/09/2022,Mobile Phones,ST HELENS COMMUNITY PHLEBOTOMY,VODAFONE LTD,43808944, 170.00 
Department of Health,St. Helens&Knowsley Hospitals NHS Trust,30/09/2022,Mobile Phones,ST HELENS CONTACT CARE IC THERAPY TEAM,VODAFONE LTD,43808944, 121.20 
Department of Health,St. Helens&Knowsley Hospitals NHS Trust,30/09/2022,Mobile Phones,ST HELENS CONTACT CARES REABLEMENT TEAM,VODAFONE LTD,43808944, 316.54 
Department of Health,St. Helens&Knowsley Hospitals NHS Trust,30/09/2022,Mobile Phones,ST HELENS UTC,VODAFONE LTD,43808944, 72.00 
Department of Health,St. Helens&Knowsley Hospitals NHS Trust,30/09/2022,Mobile Phones,SURGICAL CARE MANAGEMENT,VODAFONE LTD,43808944, 693.29 
Department of Health,St. Helens&Knowsley Hospitals NHS Trust,30/09/2022,Mobile Phones,SURGICAL CARE SECS,VODAFONE LTD,43808944, 36.00 
Department of Health,St. Helens&Knowsley Hospitals NHS Trust,30/09/2022,Mobile Phones,THEATRES ANAESTHETICS WH,VODAFONE LTD,43808944, 189.62 
Department of Health,St. Helens&Knowsley Hospitals NHS Trust,30/09/2022,Mobile Phones,THEATRES BURNS + PLASTICS,VODAFONE LTD,43808944, 45.00 
Department of Health,St. Helens&Knowsley Hospitals NHS Trust,30/09/2022,Mobile Phones,THEATRES DIRECTORATE MGT,VODAFONE LTD,43808944, 562.31 
Department of Health,St. Helens&Knowsley Hospitals NHS Trust,30/09/2022,Mobile Phones,THEATRES ENT WHISTON,VODAFONE LTD,43808944, 18.00 
Department of Health,St. Helens&Knowsley Hospitals NHS Trust,30/09/2022,Mobile Phones,THEATRES GEN SURGERY/UROL,VODAFONE LTD,43808944, 18.00 
Department of Health,St. Helens&Knowsley Hospitals NHS Trust,30/09/2022,Mobile Phones,THEATRES MAIN ST HELEN'S,VODAFONE LTD,43808944, 66.78 
Department of Health,St. Helens&Knowsley Hospitals NHS Trust,30/09/2022,Mobile Phones,THEATRES MATERNITY WH,VODAFONE LTD,43808944, 54.00 
Department of Health,St. Helens&Knowsley Hospitals NHS Trust,30/09/2022,Mobile Phones,THEATRES MEDICAL STAFF,VODAFONE LTD,43808944, 36.36 
Department of Health,St. Helens&Knowsley Hospitals NHS Trust,30/09/2022,Mobile Phones,THEATRES TRAU ORTHOPAEDIC,VODAFONE LTD,43808944, 9.06 
Department of Health,St. Helens&Knowsley Hospitals NHS Trust,30/09/2022,Mobile Phones,THERAPY - ACUTE MEDICINE,VODAFONE LTD,43808944, 36.00 
Department of Health,St. Helens&Knowsley Hospitals NHS Trust,30/09/2022,Mobile Phones,THERAPY - AHP FACULTY PROJECT,VODAFONE LTD,43808944, 36.00 
Department of Health,St. Helens&Knowsley Hospitals NHS Trust,30/09/2022,Mobile Phones,THERAPY - MEDICINES FOR OLDER PEOPLE,VODAFONE LTD,43808944, 9.00 
Department of Health,St. Helens&Knowsley Hospitals NHS Trust,30/09/2022,Mobile Phones,THERAPY - SEDDON REHAB UNIT,VODAFONE LTD,43808944, 36.00 
Department of Health,St. Helens&Knowsley Hospitals NHS Trust,30/09/2022,Mobile Phones,THERAPY MANAGEMENT & ADMIN.,VODAFONE LTD,43808944, 712.03 
Department of Health,St. Helens&Knowsley Hospitals NHS Trust,30/09/2022,Mobile Phones,TISSUE VIABILITY,VODAFONE LTD,43808944, 54.00 
Department of Health,St. Helens&Knowsley Hospitals NHS Trust,30/09/2022,Mobile Phones,TRANSFER LOUNGE,VODAFONE LTD,43808944, 9.00 
Department of Health,St. Helens&Knowsley Hospitals NHS Trust,30/09/2022,Mobile Phones,TRAUMA ORTHOPAEDICS,VODAFONE LTD,43808944, 49.55 
Department of Health,St. Helens&Knowsley Hospitals NHS Trust,30/09/2022,Mobile Phones,TRUST IT SYSTEMS,VODAFONE LTD,43808944, 36.00 
Department of Health,St. Helens&Knowsley Hospitals NHS Trust,30/09/2022,Mobile Phones,TRUST RECHARGES,VODAFONE LTD,43808944," 1,173.41 "
Department of Health,St. Helens&Knowsley Hospitals NHS Trust,30/09/2022,Mobile Phones,UROLOGY MEDICAL STAFF,VODAFONE LTD,43808944, 180.00 
Department of Health,St. Helens&Knowsley Hospitals NHS Trust,30/09/2022,Mobile Phones,UROLOGY SUITE,VODAFONE LTD,43808944, 117.00 
Department of Health,St. Helens&Knowsley Hospitals NHS Trust,30/09/2022,Mobile Phones,VOLUNTEERS,VODAFONE LTD,43808944, 72.00 
Department of Health,St. Helens&Knowsley Hospitals NHS Trust,30/09/2022,Mobile Phones,WARD 1A MCG,VODAFONE LTD,43808944, 36.00 
Department of Health,St. Helens&Knowsley Hospitals NHS Trust,30/09/2022,Mobile Phones,WARD 1B ACUTE MEDICAL UNIT,VODAFONE LTD,43808944, 36.00 
Department of Health,St. Helens&Knowsley Hospitals NHS Trust,30/09/2022,Mobile Phones,WARD 1C ACUTE MEDICAL UNIT,VODAFONE LTD,43808944, 78.01 
Department of Health,St. Helens&Knowsley Hospitals NHS Trust,30/09/2022,Mobile Phones,WARD 1E CORONARY CARE UNIT,VODAFONE LTD,43808944, 36.00 
Department of Health,St. Helens&Knowsley Hospitals NHS Trust,30/09/2022,Mobile Phones,WARD 2A HAEMATOLOGY,VODAFONE LTD,43808944, 72.00 
Department of Health,St. Helens&Knowsley Hospitals NHS Trust,30/09/2022,Mobile Phones,WARD 2B RESPIRATORY,VODAFONE LTD,43808944, 42.22 
Department of Health,St. Helens&Knowsley Hospitals NHS Trust,30/09/2022,Mobile Phones,WARD 2C RESPIRATORY,VODAFONE LTD,43808944, 72.00 
Department of Health,St. Helens&Knowsley Hospitals NHS Trust,30/09/2022,Mobile Phones,WARD 2D GENERAL MEDICINE,VODAFONE LTD,43808944, 36.00 
Department of Health,St. Helens&Knowsley Hospitals NHS Trust,30/09/2022,Mobile Phones,WARD 3A PLASTICS,VODAFONE LTD,43808944, 129.00 
Department of Health,St. Helens&Knowsley Hospitals NHS Trust,30/09/2022,Mobile Phones,WARD 3ALPHA ORTHOPAEDICS,VODAFONE LTD,43808944, 36.00 
Department of Health,St. Helens&Knowsley Hospitals NHS Trust,30/09/2022,Mobile Phones,WARD 3B ORTHOPAEDICS,VODAFONE LTD,43808944, 36.00 
Department of Health,St. Helens&Knowsley Hospitals NHS Trust,30/09/2022,Mobile Phones,WARD 3C GENERAL MEDICINE,VODAFONE LTD,43808944, 125.42 
Department of Health,St. Helens&Knowsley Hospitals NHS Trust,30/09/2022,Mobile Phones,WARD 3D GASTROENTEROLOGY,VODAFONE LTD,43808944, 123.10 
Department of Health,St. Helens&Knowsley Hospitals NHS Trust,30/09/2022,Mobile Phones,WARD 3E GYNAECOLOGY,VODAFONE LTD,43808944, 162.96 
Department of Health,St. Helens&Knowsley Hospitals NHS Trust,30/09/2022,Mobile Phones,WARD 3F PAEDIATRICS,VODAFONE LTD,43808944, 112.34 
Department of Health,St. Helens&Knowsley Hospitals NHS Trust,30/09/2022,Mobile Phones,WARD 4A GENERAL SURGERY,VODAFONE LTD,43808944, 36.00 
Department of Health,St. Helens&Knowsley Hospitals NHS Trust,30/09/2022,Mobile Phones,WARD 4B GENERAL SURGERY,VODAFONE LTD,43808944, 36.00 
Department of Health,St. Helens&Knowsley Hospitals NHS Trust,30/09/2022,Mobile Phones,WARD 4C GENERAL SURGERY,VODAFONE LTD,43808944, 36.00 
Department of Health,St. Helens&Knowsley Hospitals NHS Trust,30/09/2022,Mobile Phones,WARD 4D BURNS,VODAFONE LTD,43808944, 100.80 
Department of Health,St. Helens&Knowsley Hospitals NHS Trust,30/09/2022,Mobile Phones,WARD 5A CARE OF THE ELDERLY,VODAFONE LTD,43808944, 324.37 
Department of Health,St. Helens&Knowsley Hospitals NHS Trust,30/09/2022,Mobile Phones,WARD 5B CARE OF THE ELDERLY,VODAFONE LTD,43808944, 36.00 
Department of Health,St. Helens&Knowsley Hospitals NHS Trust,30/09/2022,Mobile Phones,WARD 5C ACUTE STROKE UNIT (HASU),VODAFONE LTD,43808944, 189.00 
Department of Health,St. Helens&Knowsley Hospitals NHS Trust,30/09/2022,Mobile Phones,WARD 5D ASU,VODAFONE LTD,43808944, 36.00 
Department of Health,St. Helens&Knowsley Hospitals NHS Trust,30/09/2022,Mobile Phones,WHIS THEATRES ANCIL & EMERG SUP STAFF,VODAFONE LTD,43808944, 186.92 
Department of Health,St. Helens&Knowsley Hospitals NHS Trust,30/09/2022,Mobile Phones,WHIS THEATRES EMERG WKDAY NGTS WKEND,VODAFONE LTD,43808944, 36.00 
Department of Health,St. Helens&Knowsley Hospitals NHS Trust,30/09/2022,Mobile Phones,WHISTON EQUIPMENT POOL,VODAFONE LTD,43808944, 72.00 
Department of Health,St. Helens&Knowsley Hospitals NHS Trust,30/09/2022,Mobile Phones,WOMENS OPD,VODAFONE LTD,43808944, 36.00 
Department of Health,St. Helens&Knowsley Hospitals NHS Trust,30/09/2022,Mobile Phones,WORKFORCE INTELLIGENCE,VODAFONE LTD,43808944, 108.00 
Department of Health,St. Helens&Knowsley Hospitals NHS Trust,30/09/2022,NonNHS Trade Pybls Curr,Balance Sheet,SUPPLY CHAIN COORDINATION LIMITED,43711869," 130,697.32 "
Department of Health,St. Helens&Knowsley Hospitals NHS Trust,30/09/2022,NonNHS Trade Pybls Curr,Balance Sheet,SUPPLY CHAIN COORDINATION LIMITED,43809084," 206,711.35 "
Department of Health,St. Helens&Knowsley Hospitals NHS Trust,30/09/2022,NonNHS Trade Pybls Curr,Balance Sheet,SUPPLY CHAIN COORDINATION LIMITED,43873835," 219,037.93 "
Department of Health,St. Helens&Knowsley Hospitals NHS Trust,30/09/2022,NonNHS Trade Pybls Curr,Balance Sheet,SUPPLY CHAIN COORDINATION LIMITED,43949722," 185,983.74 "
Department of Health,St. Helens&Knowsley Hospitals NHS Trust,30/09/2022,Other Clinical Costs,RADIOGRAPHY WHISTON,WELLBEING SOFTWARE LTD,43934213," 32,177.75 "
Department of Health,St. Helens&Knowsley Hospitals NHS Trust,30/09/2022,Other recvables - Current,Balance Sheet,VODAFONE LTD,43808944, 36.00 
Department of Health,St. Helens&Knowsley Hospitals NHS Trust,30/09/2022,Postage & Carriage,HOTEL SERVICES MGT ST H,PITNEY BOWES LTD,43778037," 79,697.99 "
Department of Health,St. Helens&Knowsley Hospitals NHS Trust,30/09/2022,Recruitment Agency Fees,HUMAN RESOURCES - RESOURCING,CIVICA UK LTD,42563541," 38,584.05 "
Department of Health,St. Helens&Knowsley Hospitals NHS Trust,30/09/2022,Recruitment Agency Fees,HUMAN RESOURCES - RESOURCING,CIVICA UK LTD,42930331," 38,375.05 "
Department of Health,St. Helens&Knowsley Hospitals NHS Trust,30/09/2022,Recruitment Agency Fees,HUMAN RESOURCES - RESOURCING,CIVICA UK LTD,43642275," 27,446.25 "
Department of Health,St. Helens&Knowsley Hospitals NHS Trust,30/09/2022,Stocks Raw Materials,Balance Sheet,AAH PHARMACEUTICALS LTD,43857466," 93,211.39 "
Department of Health,St. Helens&Knowsley Hospitals NHS Trust,30/09/2022,Stocks Raw Materials,Balance Sheet,AAH PHARMACEUTICALS LTD,43933545," 65,715.03 "
Department of Health,St. Helens&Knowsley Hospitals NHS Trust,30/09/2022,Stocks Raw Materials,Balance Sheet,ALLIANCE HEALTHCARE DISTRIBUTION LTD,43857467," 42,265.72 "
Department of Health,St. Helens&Knowsley Hospitals NHS Trust,30/09/2022,Stocks Raw Materials,Balance Sheet,ALLIANCE HEALTHCARE DISTRIBUTION LTD,43857468," 71,697.33 "
Department of Health,St. Helens&Knowsley Hospitals NHS Trust,30/09/2022,Stocks Raw Materials,Balance Sheet,ALLIANCE HEALTHCARE DISTRIBUTION LTD,43857471," 43,537.82 "
Department of Health,St. Helens&Knowsley Hospitals NHS Trust,30/09/2022,Stocks Raw Materials,Balance Sheet,ALLIANCE HEALTHCARE DISTRIBUTION LTD,43857473," 74,984.50 "
Department of Health,St. Helens&Knowsley Hospitals NHS Trust,30/09/2022,Stocks Raw Materials,Balance Sheet,ALLIANCE HEALTHCARE DISTRIBUTION LTD,43857475," 58,496.21 "
Department of Health,St. Helens&Knowsley Hospitals NHS Trust,30/09/2022,Stocks Raw Materials,Balance Sheet,ALLIANCE HEALTHCARE DISTRIBUTION LTD,43933546," 62,102.17 "
Department of Health,St. Helens&Knowsley Hospitals NHS Trust,30/09/2022,Stocks Raw Materials,Balance Sheet,ALLOGA UK LTD,43857462," 77,098.35 "
Department of Health,St. Helens&Knowsley Hospitals NHS Trust,30/09/2022,Stocks Raw Materials,Balance Sheet,ALLOGA UK LTD,43857464," 75,531.42 "
Department of Health,St. Helens&Knowsley Hospitals NHS Trust,30/09/2022,Stocks Raw Materials,Balance Sheet,ALLOGA UK LTD,43857469," 30,682.96 "
Department of Health,St. Helens&Knowsley Hospitals NHS Trust,30/09/2022,Stocks Raw Materials,Balance Sheet,ALLOGA UK LTD,43933547," 69,971.10 "
Department of Health,St. Helens&Knowsley Hospitals NHS Trust,30/09/2022,Stocks Raw Materials,Balance Sheet,AMGEN LTD,43654730," 26,235.00 "
Department of Health,St. Helens&Knowsley Hospitals NHS Trust,30/09/2022,Stocks Raw Materials,Balance Sheet,AMGEN LTD,43654779," 39,546.53 "
Department of Health,St. Helens&Knowsley Hospitals NHS Trust,30/09/2022,Stocks Raw Materials,Balance Sheet,BAYER PLC,43827125," 34,673.33 "
Department of Health,St. Helens&Knowsley Hospitals NHS Trust,30/09/2022,Stocks Raw Materials,Balance Sheet,JANSSEN CILAG LTD,43826970," 49,680.00 "
Department of Health,St. Helens&Knowsley Hospitals NHS Trust,30/09/2022,Stocks Raw Materials,Balance Sheet,NOVARTIS PHARMACEUTICALS UK LTD,43654822," 27,964.18 "
Department of Health,St. Helens&Knowsley Hospitals NHS Trust,30/09/2022,Stocks Raw Materials,Balance Sheet,NOVARTIS PHARMACEUTICALS UK LTD,43734408," 31,651.20 "
Department of Health,St. Helens&Knowsley Hospitals NHS Trust,30/09/2022,Stocks Raw Materials,Balance Sheet,NOVARTIS PHARMACEUTICALS UK LTD,43827156," 42,270.95 "
Department of Health,St. Helens&Knowsley Hospitals NHS Trust,30/09/2022,Stocks Raw Materials,Balance Sheet,PHOENIX HEALTHCARE DISTRIBUTION LTD,43857463," 43,265.82 "
Department of Health,St. Helens&Knowsley Hospitals NHS Trust,30/09/2022,Stocks Raw Materials,Balance Sheet,PHOENIX HEALTHCARE DISTRIBUTION LTD,43857465," 25,665.96 "
Department of Health,St. Helens&Knowsley Hospitals NHS Trust,30/09/2022,Stocks Raw Materials,Balance Sheet,SCIENSUS PHARMA SERVICES LTD,43714145," 127,434.86 "
Department of Health,St. Helens&Knowsley Hospitals NHS Trust,30/09/2022,Stocks Raw Materials,Balance Sheet,SCIENSUS PHARMA SERVICES LTD,43714146," 114,230.62 "
Department of Health,St. Helens&Knowsley Hospitals NHS Trust,30/09/2022,Stocks Raw Materials,Balance Sheet,SCIENSUS PHARMA SERVICES LTD,43810718," 225,660.53 "
Department of Health,St. Helens&Knowsley Hospitals NHS Trust,30/09/2022,Stocks Raw Materials,Balance Sheet,SCIENSUS PHARMA SERVICES LTD,43857474," 40,096.89 "
Department of Health,St. Helens&Knowsley Hospitals NHS Trust,30/09/2022,Travel & Subsistence,INTERNATIONAL RECRUITMENT,NHS PROFESSIONALS LTD,43862209," 31,990.00 "
Department of Health,St. Helens&Knowsley Hospitals NHS Trust,30/09/2022,Travel & Subsistence,INTERNATIONAL RECRUITMENT,NHS PROFESSIONALS LTD,43862260," 27,720.00 "
Department of Health,St. Helens&Knowsley Hospitals NHS Trust,30/09/2022,Travel & Subsistence,INTERNATIONAL RECRUITMENT,NHS PROFESSIONALS LTD,43862266," 31,990.00 "
Department of Health,St. Helens&Knowsley Hospitals NHS Trust,30/09/2022,Travel & Subsistence,INTERNATIONAL RECRUITMENT,NHS PROFESSIONALS LTD,43967292," 70,378.00 "
Department of Health,St. Helens&Knowsley Hospitals NHS Trust,30/09/2022,Water,RATES/WATER ST HELENS,WATER PLUS LTD,43776669," 29,840.82 "
Department of Health,St. Helens&Knowsley Hospitals NHS Trust,30/09/2022,X-Ray Equipment Purchase,RADIOGRAPHY WHISTON,DIAGNOSTIC HEALTHCARE LTD,43714440," 34,300.00 "
